[Event "FIN-ch 2019"]
[Site "Helsinki"]
[Date "2019.06.16"]
[Round "7.1"]
[White "Keinanen, Toivo"]
[Black "Norri, Joose"]
[Result "1-0"]
[ECO "A32"]
[WhiteElo "2370"]
[BlackElo "2271"]
[Annotator "NA"]
[PlyCount "71"]
[EventDate "2019.06.10"]
[EventType "swiss"]
[EventCountry "FIN"]
[SourceTitle "playchess.com"]
[Source "ChessBase"]
[SourceQuality "1"]
[TimeControl "40/5400+30:1800+30"]

1. d4 {[%emt 0:00:00]} Nf6 {[%emt 0:00:00]} 2. c4 {[%emt 0:00:11]} c5 {[%emt 0:02:10]} 3. Nf3 {[%emt 0:00:31]} cxd4 {[%emt 0:00:09]} 4. Nxd4 {[%emt 0:00:30]} e6 {[%emt 0:01:28]} 5. g3 {[%emt 0:03:01]} Qc7 {[%emt 0:03:14]} 6. b3 {[%emt 0:06:38]} Bb4+ {[%emt 0:09:33]} 7. Bd2 {[%emt 0:03:11]} Bc5 {[%emt 0:02:38]} 8. e3 {[%emt 0:07:20]} d5 {[%emt 0:03:52]} 9. Nb5 {[%emt 0:07:17]} Qe7 {[%emt 0:02:22]} 10. Bg2 {[%emt 0:08:17]} Nc6 {[%emt 0:07:11]} 11. O-O {[%emt 0:05:49]} O-O {[%emt 0:03:56]} 12. cxd5 {[%emt 0:07:01]} exd5 {[%emt 0:00:42]} 13. Bc3 {[%emt 0:01:39]} Rd8 {[%emt 0:04:41]} 14. Nd4 {[%emt 0:04:07]} Bg4 {[%emt 0:10:28]} 15. Nxc6 {[%emt 0:01:03]} bxc6 {[%emt 0:00:06]} 16. Qc1 {[%emt 0:05:01]} Ne4 {[%emt 0:05:23]} 17. Bd4 {[%emt 0:03:32]} Bxd4 {[%emt 0:02:16]} 18. exd4 {[%emt 0:00:02]} Qf6 {[%emt 0:00:16]} 19. Nd2 {[%emt 0:01:05]} Ng5 {[%emt 0:16:44]} 20. h4 {[%emt 0:07:13]} Ne6 {[%emt 0:00:46]} 21. Qxc6 {[%emt 0:00:38]} Rac8 {[%emt 0:03:16]} 22. Qa6 {[%emt 0:00:14]} Rc2 {[%emt 0:02:30]} 23. Qa5 {[%emt 0:06:44]} Qxd4 {[%emt 0:03:19]} 24. Nf3 {[%emt 0:02:15]} Qf6 {[%emt 0:08:36]} 25. Ng5 {[%emt 0:06:35]} Be2 {[%emt 0:01:07]} 26. Rfc1 {[%emt 0:05:09]} Rdc8 {[%emt 0:01:04]} 27. Re1 {[%emt 0:02:01]} Ba6 {[%emt 0:02:31]} 28. Nh3 {[%emt 0:00:47]} Nd4 {[%emt 0:00:36]} 29. Qxd5 {[%emt 0:01:12]} Ne2+ {[%emt 0:00:21]} 30. Kh2 {[%emt 0:00:55]} h6 {[%emt 0:00:36]} 31. Qe4 {[%emt 0:00:51]} Rb2 {[%emt 0:01:08]} 32. Qe3 {[%emt 0:02:00]} Rc7 {[%emt 0:00:29]} 33. Rad1 {[%emt 0:00:52]} Rxa2 {[%emt 0:00:48]} 34. Qe8+ {[%emt 0:01:09]} Kh7 {[%emt 0:00:02]} 35. Rd8 {[%emt 0:01:01]} Nxg3 {[%emt 0:01:28]} 36. h5 {[%emt 0:00:59]} 1-0

[Event "FIN-ch 2019"]
[Site "Helsinki"]
[Date "2019.06.16"]
[Round "7.2"]
[White "Nyysti, Sampsa"]
[Black "Koykka, Pekka"]
[Result "1/2-1/2"]
[ECO "C18"]
[WhiteElo "2320"]
[BlackElo "2399"]
[Annotator "NA"]
[PlyCount "86"]
[EventDate "2019.06.10"]
[EventType "swiss"]
[EventCountry "FIN"]
[SourceTitle "playchess.com"]
[Source "ChessBase"]
[SourceQuality "1"]
[TimeControl "40/5400+30:1800+30"]

1. e4 {[%emt 0:00:00]} e6 {[%emt 0:00:00]} 2. d4 {[%emt 0:00:00]} d5 {[%emt 0:00:00]} 3. Nc3 {[%emt 0:00:00]} Bb4 {[%emt 0:00:00]} 4. e5 {[%emt 0:00:00]} c5 {[%emt 0:00:00]} 5. a3 {[%emt 0:00:00]} Bxc3+ {[%emt 0:00:01]} 6. bxc3 {[%emt 0:00:02]} Ne7 {[%emt 0:00:06]} 7. Qg4 {[%emt 0:00:20]} cxd4 {[%emt 0:00:08]} 8. Bd3 {[%emt 0:00:09]} Qa5 {[%emt 0:00:09]} 9. Rb1 {[%emt 0:00:15]} Nd7 {[%emt 0:21:55]} 10. Nf3 {[%emt 0:00:29]} Qxc3+ {[%emt 0:09:11]} 11. Bd2 {[%emt 0:01:35]} Qc7 {[%emt 0:00:08]} 12. Qxg7 {[%emt 0:06:25]} Rg8 {[%emt 0:00:31]} 13. Qxh7 {[%emt 0:00:11]} Nxe5 {[%emt 0:07:26]} 14. Nxe5 {[%emt 0:00:15]} Qxe5+ {[%emt 0:00:21]} 15. Kf1 {[%emt 0:00:02]} Bd7 {[%emt 0:16:47]} 16. Rxb7 {[%emt 0:10:22]} Bc6 {[%emt 0:13:46]} 17. Rxe7+ {[%emt 0:25:30]} Kxe7 {[%emt 0:00:12]} 18. Bb4+ {[%emt 0:00:04]} Kf6 {[%emt 0:01:25]} 19. Qh6+ {[%emt 0:00:18]} Rg6 {[%emt 0:00:27]} 20. Bxg6 {[%emt 0:00:08]} fxg6 {[%emt 0:00:19]} 21. Qh7 {[%emt 0:00:42]} Re8 {[%emt 0:05:17]} 22. h4 {[%emt 0:02:06]} Qh5 {[%emt 0:05:27]} 23. Qxh5 {[%emt 0:02:56]} gxh5 {[%emt 0:00:02]} 24. Rh3 {[%emt 0:01:56]} Ba4 {[%emt 0:08:20]} 25. c3 {[%emt 0:13:43]} d3 {[%emt 0:00:59]} 26. Ke1 {[%emt 0:00:25]} Bc2 {[%emt 0:03:02]} 27. Rf3+ {[%emt 0:03:28]} Kg6 {[%emt 0:00:08]} 28. Rf8 {[%emt 0:02:06]} Rxf8 {[%emt 0:00:20]} 29. Bxf8 {[%emt 0:00:02]} Kf5 {[%emt 0:01:05]} 30. Kd2 {[%emt 0:01:29]} e5 {[%emt 0:00:24]} 31. Ke3 {[%emt 0:01:28]} Kg4 {[%emt 0:01:09]} 32. Be7 {[%emt 0:00:46]} e4 {[%emt 0:01:54]} 33. Bc5 {[%emt 0:04:56]} a6 {[%emt 0:00:06]} 34. g3 {[%emt 0:00:58]} Kf5 {[%emt 0:01:10]} 35. Kd2 {[%emt 0:00:36]} Ke6 {[%emt 0:00:12]} 36. Bb4 {[%emt 0:03:22]} Kd7 {[%emt 0:00:47]} 37. Bf8 {[%emt 0:00:07]} Bb3 {[%emt 0:01:02]} 38. Bb4 {[%emt 0:00:23]} Kc6 {[%emt 0:00:36]} 39. Bf8 {[%emt 0:00:11]} Kb5 {[%emt 0:00:14]} 40. Be7 {[%emt 0:00:26]} Kc4 {[%emt 0:00:40]} 41. Bf6 {[%emt 0:30:19]} Ba4 {[%emt 0:30:18]} 42. Bg7 {[%emt 0:00:17]} Kb3 {[%emt 0:04:06]} 43. Bf8 {[%emt 0:00:13]} Kc4 {[%emt 0:00:00]} 1/2-1/2

[Event "FIN-ch 2019"]
[Site "Helsinki"]
[Date "2019.06.16"]
[Round "7.3"]
[White "Sipila, Vilka"]
[Black "Lahdelma, Henri"]
[Result "0-1"]
[ECO "C11"]
[WhiteElo "2410"]
[BlackElo "2188"]
[Annotator "NA"]
[PlyCount "116"]
[EventDate "2019.06.10"]
[EventType "swiss"]
[EventCountry "FIN"]
[SourceTitle "playchess.com"]
[Source "ChessBase"]
[SourceQuality "1"]
[TimeControl "40/5400+30:1800+30"]

1. e4 {[%emt 0:00:00]} e6 {[%emt 0:00:00]} 2. d4 {[%emt 0:00:00]} d5 {[%emt 0:00:00]} 3. Nc3 {[%emt 0:00:00]} Nf6 {[%emt 0:00:00]} 4. e5 {[%emt 0:00:06]} Nfd7 {[%emt 0:00:00]} 5. f4 {[%emt 0:00:17]} c5 {[%emt 0:00:01]} 6. Nf3 {[%emt 0:00:08]} Nc6 {[%emt 0:00:04]} 7. Be3 {[%emt 0:00:09]} Be7 {[%emt 0:00:09]} 8. Qd2 {[%emt 0:00:11]} O-O {[%emt 0:00:06]} 9. dxc5 {[%emt 0:00:11]} Bxc5 {[%emt 0:00:07]} 10. O-O-O {[%emt 0:00:14]} Qa5 {[%emt 0:00:07]} 11. a3 {[%emt 0:00:09]} a6 {[%emt 0:00:08]} 12. Bxc5 {[%emt 0:00:12]} Nxc5 {[%emt 0:00:08]} 13. Qe3 {[%emt 0:00:08]} Qb6 {[%emt 0:00:06]} 14. Nd4 {[%emt 0:01:36]} Nxd4 {[%emt 0:00:28]} 15. Rxd4 {[%emt 0:00:07]} Qc7 {[%emt 0:05:41]} 16. h4 {[%emt 0:02:08]} Bd7 {[%emt 0:00:26]} 17. h5 {[%emt 0:00:51]} f5 {[%emt 0:01:54]} 18. exf6 {[%emt 0:00:56]} Rxf6 {[%emt 0:00:10]} 19. g3 {[%emt 0:06:28]} Rc8 {[%emt 0:01:07]} 20. Bd3 {[%emt 0:09:53]} b5 {[%emt 0:11:29]} 21. Rh2 {[%emt 0:03:47]} Nxd3+ {[%emt 0:01:39]} 22. Qxd3 {[%emt 0:03:19]} Be8 {[%emt 0:04:09]} 23. Qe3 {[%emt 0:03:57]} a5 {[%emt 0:03:10]} 24. f5 {[%emt 0:10:47]} b4 {[%emt 0:13:17]} 25. axb4 {[%emt 0:05:51]} e5 {[%emt 0:00:28]} 26. Rxd5 {[%emt 0:01:28]} axb4 {[%emt 0:00:06]} 27. Nd1 {[%emt 0:08:47]} Rxf5 {[%emt 0:10:43]} 28. g4 {[%emt 0:04:09]} Rf1 {[%emt 0:12:03]} 29. Qxe5 {[%emt 0:03:36]} Qxe5 {[%emt 0:06:55]} 30. Rxe5 {[%emt 0:00:13]} Bc6 {[%emt 0:10:28]} 31. Rf2 {[%emt 0:02:32]} Rg1 {[%emt 0:00:29]} 32. Rc5 {[%emt 0:01:03]} Rd8 {[%emt 0:00:42]} 33. Rd2 {[%emt 0:00:05]} Ra8 {[%emt 0:00:07]} 34. Kb1 {[%emt 0:03:40]} Bf3 {[%emt 0:00:11]} 35. Rcd5 {[%emt 0:00:05]} Bxd5 {[%emt 0:00:10]} 36. Rxd5 {[%emt 0:00:02]} Rxg4 {[%emt 0:00:21]} 37. b3 {[%emt 0:01:14]} Rc8 {[%emt 0:01:35]} 38. Ne3 {[%emt 0:00:28]} Re4 {[%emt 0:01:52]} 39. Nc4 {[%emt 0:01:52]} Rb8 {[%emt 0:01:58]} 40. Ne5 {[%emt 0:01:43]} Re8 {[%emt 0:04:33]} 41. Nc4 {[%emt 0:32:31]} g6 {[%emt 0:33:57]} 42. hxg6 {[%emt 0:00:50]} hxg6 {[%emt 0:00:05]} 43. Rb5 {[%emt 0:01:30]} Kh7 {[%emt 0:00:47]} 44. Kb2 {[%emt 0:04:45]} R8e7 {[%emt 0:01:45]} 45. Rxb4 {[%emt 0:05:01]} g5 {[%emt 0:00:05]} 46. Rb5 {[%emt 0:02:50]} g4 {[%emt 0:00:23]} 47. Nd6 {[%emt 0:00:40]} R4e5 {[%emt 0:00:55]} 48. Rb4 {[%emt 0:00:14]} g3 {[%emt 0:00:24]} 49. Rh4+ {[%emt 0:03:11]} Kg8 {[%emt 0:00:18]} 50. Rh1 {[%emt 0:00:42]} g2 {[%emt 0:02:27]} 51. Rg1 {[%emt 0:00:09]} Rg7 {[%emt 0:00:07]} 52. Nc4 {[%emt 0:01:04]} Re2 {[%emt 0:01:08]} 53. Kc3 {[%emt 0:01:01]} Rg3+ {[%emt 0:03:12]} 54. Kd4 {[%emt 0:00:22]} Rxc2 {[%emt 0:01:27]} 55. Ke4 {[%emt 0:01:42]} Rf2 {[%emt 0:00:51]} 56. Rd1 {[%emt 0:03:21]} Rf1 {[%emt 0:01:15]} 57. Rd5 {[%emt 0:00:19]} g1=Q {[%emt 0:00:16]} 58. Ne5 {[%emt 0:00:08]} Qe3# {[%emt 0:02:31]} 0-1

[Event "FIN-ch 2019"]
[Site "Helsinki"]
[Date "2019.06.16"]
[Round "7.4"]
[White "Hokkanen, Petri"]
[Black "Ronka, Erik"]
[Result "1-0"]
[ECO "B13"]
[WhiteElo "2199"]
[BlackElo "2270"]
[Annotator "NA"]
[PlyCount "95"]
[EventDate "2019.06.10"]
[EventType "swiss"]
[EventCountry "FIN"]
[SourceTitle "playchess.com"]
[Source "ChessBase"]
[SourceQuality "1"]
[TimeControl "40/5400+30:1800+30"]

1. e4 {[%emt 1:30:30]} c6 {[%emt 1:30:30]} 2. d4 {[%emt 0:00:30]} d5 3. exd5 {[%emt 0:00:30]} cxd5 {[%emt 0:01:00]} 4. Bd3 {[%emt 0:00:30]} Nc6 {[%emt 0:00:30]} 5. c3 {[%emt 0:00:30]} Qc7 6. h3 {[%emt 0:00:30]} Nf6 {[%emt 0:01:00]} 7. Nf3 {[%emt 0:00:30]} g6 {[%emt 0:00:30]} 8. O-O {[%emt 0:00:30]} Bf5 {[%emt 0:00:30]} 9. Re1 {[%emt 0:00:30]} Bxd3 {[%emt 0:00:30]} 10. Qxd3 {[%emt 0:00:30]} Bg7 {[%emt 0:00:30]} 11. g3 {[%emt 0:00:30]} O-O {[%emt 0:00:30]} 12. Bf4 {[%emt 0:00:30]} Qd7 {[%emt 0:00:30]} 13. Kg2 {[%emt 0:00:30]} Nh5 {[%emt 0:00:30]} 14. Bc1 {[%emt 0:00:30]} Qd6 {[%emt 0:00:30]} 15. Qe3 {[%emt 0:00:30]} Rfe8 {[%emt 0:00:30]} 16. g4 {[%emt 0:00:30]} Nf6 {[%emt 0:00:30]} 17. Ne5 {[%emt 0:00:30]} Nd7 {[%emt 0:00:30]} 18. f4 {[%emt 0:00:30]} Nf8 {[%emt 0:00:30]} 19. Nd2 {[%emt 0:00:30]} f6 {[%emt 0:00:30]} 20. Nxc6 {[%emt 0:00:30]} bxc6 {[%emt 0:00:30]} 21. Nf3 {[%emt 0:00:30]} e6 {[%emt 0:00:30]} 22. Bd2 {[%emt 0:00:30]} Nd7 {[%emt 0:00:30]} 23. Qf2 {[%emt 0:00:30]} c5 {[%emt 0:00:30]} 24. Re2 {[%emt 0:00:30]} Rab8 {[%emt 0:00:30]} 25. b3 {[%emt 0:00:30]} cxd4 {[%emt 0:00:30]} 26. cxd4 {[%emt 0:00:30]} Qa6 {[%emt 0:00:30]} 27. Bc3 {[%emt 0:00:30]} Rbc8 {[%emt 0:00:30]} 28. Re3 {[%emt 0:00:30]} f5 {[%emt 0:00:30]} 29. g5 {[%emt 0:00:30]} Rc6 {[%emt 0:00:30]} 30. h4 {[%emt 0:00:30]} Rec8 {[%emt 0:00:30]} 31. Qd2 {[%emt 0:00:30]} R8c7 {[%emt 0:00:30]} 32. Kg3 {[%emt 0:00:30]} Qc8 {[%emt 0:00:30]} 33. Bb4 {[%emt 0:00:30]} Rc2 {[%emt 0:00:30]} 34. Qe1 {[%emt 0:00:30]} Rc1 {[%emt 0:00:30]} 35. Rxc1 {[%emt 0:00:30]} Rxc1 {[%emt 0:00:30]} 36. Rc3 {[%emt 0:00:30]} Rxc3 {[%emt 0:00:30]} 37. Qxe6+ {[%emt 0:00:30]} Kh8 {[%emt 0:00:30]} 38. Bxc3 {[%emt 0:00:30]} Nb6 {[%emt 0:00:30]} 39. Qe3 {[%emt 0:00:30]} Qc6 {[%emt 0:00:30]} 40. Bb4 {[%emt 0:00:30]} Nc8 {[%emt 0:00:30]} 41. Bc5 {[%emt 0:30:30]} h6 {[%emt 0:30:30]} 42. a4 {[%emt 0:00:30]} h5 {[%emt 0:00:30]} 43. b4 {[%emt 0:00:30]} Qxa4 {[%emt 0:00:30]} 44. Qe6 {[%emt 0:00:30]} Nb6 {[%emt 0:00:30]} 45. Qxg6 {[%emt 0:00:30]} Nd7 {[%emt 0:00:30]} 46. Qe8+ {[%emt 0:00:30]} Kh7 {[%emt 0:00:30]} 47. g6+ {[%emt 0:00:30]} Kh6 {[%emt 0:00:30]} 48. Be7 {[%emt 0:00:30]} 1-0

[Event "FIN-ch 2019"]
[Site "Helsinki"]
[Date "2019.06.16"]
[Round "7.5"]
[White "Tiitta, Sauli"]
[Black "Agopov, Mikael"]
[Result "1/2-1/2"]
[ECO "B20"]
[WhiteElo "2214"]
[BlackElo "2432"]
[Annotator "NA"]
[PlyCount "63"]
[EventDate "2019.06.10"]
[EventType "swiss"]
[EventCountry "FIN"]
[SourceTitle "playchess.com"]
[Source "ChessBase"]
[SourceQuality "1"]
[TimeControl "40/5400+30:1800+30"]

1. e4 {[%emt 0:00:00]} c5 {[%emt 0:00:00]} 2. b3 {[%emt 0:00:00]} Nf6 {[%emt 0:00:00]} 3. Nc3 {[%emt 0:01:14]} Nc6 {[%emt 0:03:39]} 4. Nf3 {[%emt 0:01:58]} g6 {[%emt 0:01:04]} 5. Bb2 {[%emt 0:04:37]} Bg7 {[%emt 0:00:09]} 6. Qe2 {[%emt 0:08:22]} O-O {[%emt 0:04:51]} 7. O-O-O {[%emt 0:00:31]} Nd4 {[%emt 0:02:41]} 8. Nxd4 {[%emt 0:11:03]} cxd4 {[%emt 0:00:06]} 9. Nb5 {[%emt 0:00:15]} e5 {[%emt 0:00:09]} 10. c3 $17 {[%emt 0:08:07]} ({White should try} 10. Nd6 $15) 10... d5 {[%emt 0:30:52]} 11. cxd4 {[%emt 0:00:25]} dxe4 {[%emt 0:04:52]} 12. dxe5 {[%emt 0:00:39]} Ng4 {[%emt 0:03:24]} 13. f4 {[%emt 0:08:24]} a6 {[%emt 0:08:40]} 14. Nc3 {[%emt 0:08:13]} Qb6 {[%emt 0:00:49]} 15. Nxe4 {[%emt 0:08:58]} Bf5 {[%emt 0:00:05]} 16. h3 {[%emt 0:03:28]} Rfc8+ {[%emt 0:00:55]} 17. Bc3 {[%emt 0:02:10]} Bxe4 {[%emt 0:08:39]} 18. hxg4 {[%emt 0:00:11]} Bd5 {[%emt 0:00:03]} 19. Kb2 {[%emt 0:03:18]} a5 {[%emt 0:05:12]} 20. Qb5 {[%emt 0:02:33]} Qd8 {[%emt 0:00:03]} 21. Rh3 {[%emt 0:01:36]} Bf8 {[%emt 0:03:30]} 22. Qd3 {[%emt 0:02:58]} a4 {[%emt 0:00:57]} 23. b4 {[%emt 0:07:43]} Rc4 {[%emt 0:04:28]} 24. Qg3 {[%emt 0:00:53]} Rxb4+ {[%emt 0:06:58]} 25. Bxb4 {[%emt 0:05:08]} Qb6 {[%emt 0:00:08]} 26. a3 {[%emt 0:01:38]} Bxb4 {[%emt 0:00:04]} 27. axb4 {[%emt 0:00:20]} Qxb4+ {[%emt 0:00:02]} 28. Ka1 {[%emt 0:00:19]} Bb3 {[%emt 0:00:33]} 29. Qc3 {[%emt 0:01:52]} Qa3+ {[%emt 0:03:36]} 30. Kb1 {[%emt 0:00:05]} Qa2+ {[%emt 0:00:28]} 31. Kc1 {[%emt 0:00:05]} Qa3+ {[%emt 0:03:34]} 32. Kb1 {[%emt 0:00:54]} 1/2-1/2

[Event "FIN-ch 2019"]
[Site "Helsinki"]
[Date "2019.06.16"]
[Round "7.7"]
[White "Luukkonen, Tommi"]
[Black "Lindholm, Jere"]
[Result "0-1"]
[ECO "C16"]
[WhiteElo "2330"]
[BlackElo "2145"]
[Annotator "NA"]
[PlyCount "62"]
[EventDate "2019.06.10"]
[EventType "swiss"]
[EventCountry "FIN"]
[SourceTitle "playchess.com"]
[Source "ChessBase"]
[SourceQuality "1"]
[TimeControl "40/5400+30:1800+30"]

1. e4 {[%emt 0:00:25]} e6 {[%emt 0:02:08]} 2. d4 {[%emt 0:00:11]} d5 {[%emt 0:00:07]} 3. Nc3 {[%emt 0:00:15]} Bb4 {[%emt 0:00:09]} 4. e5 {[%emt 0:00:13]} b6 {[%emt 0:00:02]} 5. Bd2 {[%emt 0:03:50]} Ne7 {[%emt 0:01:18]} 6. Qg4 {[%emt 0:03:09]} O-O {[%emt 0:00:05]} 7. O-O-O {[%emt 0:02:26]} c5 {[%emt 0:01:19]} 8. dxc5 {[%emt 0:05:13]} Bxc3 {[%emt 0:02:46]} 9. Bxc3 {[%emt 0:00:21]} bxc5 {[%emt 0:00:07]} 10. h4 {[%emt 0:03:57]} Qb6 {[%emt 0:07:29]} 11. h5 {[%emt 0:02:14]} h6 {[%emt 0:00:46]} 12. Bd2 {[%emt 0:02:06]} Kh8 {[%emt 0:06:36]} 13. Rh3 {[%emt 0:11:38]} Nbc6 {[%emt 0:01:29]} 14. Rg3 {[%emt 0:14:53]} Nf5 {[%emt 0:02:58]} 15. Rb3 {[%emt 0:00:37]} Qc7 {[%emt 0:02:02]} 16. f4 {[%emt 0:01:04]} c4 {[%emt 0:03:10]} 17. Ra3 {[%emt 0:01:36]} Qb6 {[%emt 0:02:44]} 18. Ne2 {[%emt 0:03:26]} Rb8 {[%emt 0:02:41]} 19. b3 {[%emt 0:00:18]} d4 {[%emt 0:10:38]} 20. Kb1 {[%emt 0:02:12]} Qc5 {[%emt 0:02:49]} 21. Bc1 {[%emt 0:00:19]} Ne3 {[%emt 0:05:12]} 22. Bxe3 {[%emt 0:00:07]} Qxa3 {[%emt 0:00:07]} 23. Bc1 {[%emt 0:09:30]} Qc5 {[%emt 0:02:27]} 24. Bb2 {[%emt 0:00:17]} c3 {[%emt 0:02:09]} 25. Bc1 {[%emt 0:00:04]} Bb7 {[%emt 0:01:18]} 26. Qh4 {[%emt 0:02:42]} Rfd8 {[%emt 0:03:00]} 27. Qf2 {[%emt 0:00:24]} a5 {[%emt 0:02:31]} 28. Ng3 {[%emt 0:00:48]} Nb4 {[%emt 0:00:56]} 29. Bd3 {[%emt 0:01:51]} a4 {[%emt 0:07:07]} 30. f5 {[%emt 0:00:43]} axb3 {[%emt 0:00:56]} 31. cxb3 {[%emt 0:00:15]} Ba6 {[%emt 0:06:44]} 0-1

[Event "FIN-ch 2019"]
[Site "Helsinki"]
[Date "2019.06.17"]
[Round "8.1"]
[White "Keinanen, Toivo"]
[Black "Hokkanen, Petri"]
[Result "1-0"]
[ECO "A14"]
[WhiteElo "2370"]
[BlackElo "2199"]
[Annotator "NA"]
[PlyCount "87"]
[EventDate "2019.06.10"]
[EventType "swiss"]
[EventCountry "FIN"]
[SourceTitle "playchess.com"]
[Source "ChessBase"]
[SourceQuality "1"]
[TimeControl "40/5400+30:1800+30"]

1. c4 {[%emt 0:00:00]} e6 {[%emt 0:00:00]} 2. g3 {[%emt 0:01:21]} d5 {[%emt 0:00:28]} 3. Bg2 {[%emt 0:02:07]} Nf6 {[%emt 0:00:25]} 4. Nf3 {[%emt 0:01:08]} Be7 {[%emt 0:01:05]} 5. O-O {[%emt 0:00:54]} O-O {[%emt 0:00:05]} 6. b3 {[%emt 0:00:11]} c6 {[%emt 0:01:21]} 7. Bb2 {[%emt 0:04:23]} b6 {[%emt 0:00:29]} 8. d3 {[%emt 0:02:21]} Bb7 {[%emt 0:01:14]} 9. Nc3 {[%emt 0:03:27]} Nbd7 {[%emt 0:04:14]} 10. Qd2 {[%emt 0:09:51]} Re8 {[%emt 0:03:35]} 11. Rfd1 {[%emt 0:02:19]} e5 {[%emt 0:03:22]} 12. cxd5 {[%emt 0:04:42]} cxd5 {[%emt 0:01:56]} 13. Rac1 {[%emt 0:02:37]} d4 {[%emt 0:07:11]} 14. Nb5 {[%emt 0:04:38]} Nd5 {[%emt 0:01:16]} 15. e4 {[%emt 0:04:52]} a6 {[%emt 0:06:54]} 16. Nbxd4 {[%emt 0:04:30]} Bb4 {[%emt 0:08:32]} 17. Qg5 {[%emt 0:02:36]} Be7 {[%emt 0:06:59]} 18. Qd2 {[%emt 0:04:46]} Bb4 {[%emt 0:00:06]} 19. Qc2 {[%emt 0:00:55]} Rc8 {[%emt 0:05:45]} 20. Qb1 {[%emt 0:00:09]} Nc3 {[%emt 0:12:14]} 21. Bxc3 {[%emt 0:01:33]} Bxc3 {[%emt 0:00:02]} 22. Ne2 {[%emt 0:03:35]} Bb4 {[%emt 0:00:05]} 23. Rxc8 {[%emt 0:06:12]} Qxc8 {[%emt 0:00:06]} 24. Bh3 {[%emt 0:01:51]} Qc7 {[%emt 0:02:03]} 25. d4 {[%emt 0:03:31]} Nf6 {[%emt 0:01:01]} 26. d5 {[%emt 0:01:12]} Qd6 {[%emt 0:01:13]} 27. Kg2 {[%emt 0:02:41]} g6 {[%emt 0:03:13]} 28. Nc1 {[%emt 0:05:19]} a5 {[%emt 0:04:22]} 29. Kg1 {[%emt 0:07:16]} h5 {[%emt 0:02:58]} 30. a4 {[%emt 0:02:19]} Ng4 {[%emt 0:01:27]} 31. Nd3 {[%emt 0:01:28]} Bc3 {[%emt 0:01:59]} 32. Qc1 {[%emt 0:02:07]} Rc8 {[%emt 0:04:20]} 33. Qg5 {[%emt 0:00:30]} Kg7 {[%emt 0:05:55]} 34. Nh4 {[%emt 0:01:59]} Kh7 {[%emt 0:00:57]} 35. Bxg4 {[%emt 0:02:17]} hxg4 {[%emt 0:00:30]} 36. Qxg4 {[%emt 0:00:04]} Rc7 {[%emt 0:06:28]} 37. Nf3 {[%emt 0:00:54]} Kg8 {[%emt 0:00:51]} 38. Qg5 {[%emt 0:00:52]} f5 {[%emt 0:00:36]} 39. Nh4 {[%emt 0:04:30]} fxe4 {[%emt 0:00:12]} 40. Nf5 {[%emt 0:01:19]} Qxd5 {[%emt 0:00:06]} 41. Ne3 {[%emt 0:07:11]} Qd6 {[%emt 0:04:18]} 42. Nxe5 {[%emt 0:02:22]} Bd4 {[%emt 0:05:30]} 43. Nxg6 {[%emt 0:02:20]} Rg7 {[%emt 0:06:35]} 44. Ne7+ {[%emt 0:20:51]} 1-0

[Event "FIN-ch 2019"]
[Site "Helsinki"]
[Date "2019.06.17"]
[Round "8.2"]
[White "Lahdelma, Henri"]
[Black "Koykka, Pekka"]
[Result "1-0"]
[ECO "A57"]
[WhiteElo "2188"]
[BlackElo "2399"]
[Annotator "NA"]
[PlyCount "91"]
[EventDate "2019.06.10"]
[EventType "swiss"]
[EventCountry "FIN"]
[SourceTitle "playchess.com"]
[Source "ChessBase"]
[SourceQuality "1"]
[TimeControl "40/5400+30:1800+30"]

1. d4 {[%emt 0:00:00]} Nf6 {[%emt 0:00:00]} 2. c4 {[%emt 0:00:00]} c5 {[%emt 0:00:00]} 3. d5 {[%emt 0:00:00]} b5 {[%emt 0:00:00]} 4. cxb5 {[%emt 0:00:00]} a6 {[%emt 0:00:00]} 5. f3 {[%emt 0:00:16]} e6 {[%emt 0:00:39]} 6. e4 {[%emt 0:00:08]} exd5 {[%emt 0:00:43]} 7. e5 {[%emt 0:00:29]} Qe7 {[%emt 0:00:14]} 8. Qe2 {[%emt 0:00:14]} Ng8 {[%emt 0:00:39]} 9. Nc3 {[%emt 0:00:29]} Bb7 {[%emt 0:00:51]} 10. Nh3 {[%emt 0:00:35]} Qd8 {[%emt 0:00:26]} 11. Nf4 {[%emt 0:04:50]} Ne7 {[%emt 0:00:22]} 12. Bd2 {[%emt 0:01:06]} g6 {[%emt 0:04:16]} 13. bxa6 {[%emt 0:05:11]} Nxa6 {[%emt 0:10:26]} 14. Nb5 {[%emt 0:01:40]} Nf5 {[%emt 0:00:51]} 15. g4 {[%emt 0:09:22]} Ng7 {[%emt 0:07:03]} 16. h4 {[%emt 0:09:46]} Nc7 {[%emt 0:32:21]} 17. h5 {[%emt 0:20:15]} gxh5 {[%emt 0:01:00]} 18. Nxh5 {[%emt 0:06:19]} Nxh5 {[%emt 0:00:23]} 19. Nd6+ {[%emt 0:07:47]} Bxd6 {[%emt 0:00:08]} 20. exd6+ {[%emt 0:00:04]} Ne6 {[%emt 0:00:09]} 21. Rxh5 {[%emt 0:01:06]} Qf6 {[%emt 0:03:18]} 22. Bg5 {[%emt 0:01:55]} Qd4 {[%emt 0:04:43]} 23. Rd1 {[%emt 0:08:03]} Qb4+ {[%emt 0:02:45]} 24. Rd2 {[%emt 0:02:45]} f6 {[%emt 0:25:03]} 25. Bxf6 {[%emt 0:06:22]} O-O {[%emt 0:00:07]} 26. Qd3 {[%emt 0:07:47]} Rf7 {[%emt 0:00:17]} 27. a3 {[%emt 0:00:24]} Qf4 {[%emt 0:00:45]} 28. Be5 {[%emt 0:00:32]} Qxf3 {[%emt 0:01:41]} 29. Qxf3 {[%emt 0:00:18]} Rxf3 {[%emt 0:00:04]} 30. Bd3 {[%emt 0:00:20]} Ra4 {[%emt 0:04:37]} 31. Bxh7+ {[%emt 0:00:57]} Kf7 {[%emt 0:00:01]} 32. Bf5 {[%emt 0:00:39]} Ba6 {[%emt 0:00:47]} 33. Rf2 {[%emt 0:02:11]} Re3+ {[%emt 0:01:14]} 34. Kd2 {[%emt 0:00:09]} Rxe5 {[%emt 0:00:16]} 35. Bc2+ {[%emt 0:00:21]} Kg7 {[%emt 0:00:45]} 36. Bxa4 {[%emt 0:00:35]} Ng5 {[%emt 0:00:22]} 37. Rf5 {[%emt 0:03:51]} Re2+ {[%emt 0:00:14]} 38. Kc1 {[%emt 0:00:35]} Ne6 {[%emt 0:00:32]} 39. Re5 {[%emt 0:01:06]} Rg2 {[%emt 0:00:42]} 40. Rxe6 {[%emt 0:00:24]} dxe6 {[%emt 0:00:24]} 41. d7 {[%emt 0:30:07]} Rg1+ {[%emt 0:30:03]} 42. Kc2 {[%emt 0:00:20]} Rg2+ {[%emt 0:00:07]} 43. Kb1 {[%emt 0:00:06]} Bd3+ {[%emt 0:00:07]} 44. Ka2 {[%emt 0:01:05]} Rg1 {[%emt 0:00:50]} 45. Bd1 {[%emt 0:01:20]} Rxd1 {[%emt 0:00:00]} 46. d8=Q {[%emt 0:00:00]} 1-0